bitfinex-derivatives/quotes_BTCF0:USTF0_20250127
["timestamp","ask_amount","ask_price","bid_price","bid_amount"]
[1737991405684,0.851944,101240.0,101210.0,2.0312521]
[1737991405685,0.3608,101240.0,101210.0,2.0312521]
[1737991405885,0.00148225,101250.0,101230.0,0.44602605]
[1737991406193,0.55827,101280.0,101240.0,0.5806361]
[1737991406388,0.55827,101280.0,101270.0,0.08522605]
[1737991406591,0.10779824,101280.0,101270.0,0.28270705]
[1737991406894,0.4608,101300.0,101290.0,0.197442]
[1737991407092,0.1,101300.0,101290.0,0.08522605]
[1737991407294,0.21358666,101300.0,101290.0,0.28266805]
[1737991407687,0.23697999,101300.0,101290.0,0.64346805]
[1737991408698,0.23697999,101300.0,101290.0,0.68589575]
[1737991410195,0.23697999,101300.0,101290.0,0.69273559]
[1737991410683,0.1,101300.0,101290.0,0.69273559]
[1737991411895,0.1,101300.0,101290.0,0.70062559]
[1737991413193,0.0001485,101310.0,101300.0,0.197423]
[1737991413390,0.0001485,101310.0,101300.0,0.32507675]
[1737991413594,0.0001485,101310.0,101300.0,0.68587675]
[1737991413900,0.3608,101320.0,101310.0,0.197403]
[1737991414096,0.85857212,101330.0,101310.0,0.32505675]
[1737991414298,0.66120112,101330.0,101320.0,0.12765375]
[1737991414606,0.89781934,101330.0,101310.0,0.3572]
[1737991414896,0.197423,101300.0,101290.0,0.00789]
[1737991415196,0.6637208,101300.0,101290.0,0.00789]
[1737991416093,0.6637208,101300.0,101280.0,0.32526025]
[1737991416296,0.3608,101290.0,101280.0,0.32526025]
[1737991416789,0.46798364,101290.0,101280.0,0.32526025]
[1737991417293,0.66542564,101290.0,101280.0,0.0001485]
[1737991418300,0.10718364,101290.0,101280.0,0.32526425]
[1737991419195,0.10718364,101290.0,101280.0,0.68606425]
[1737991419393,0.197428,101300.0,101290.0,0.197442]
[1737991419599,0.558228,101300.0,101290.0,0.197442]
[1737991419899,0.66553601,101300.0,101290.0,0.197442]
[1737991420106,0.76154249,101310.0,101300.0,0.197423]
[1737991420406,0.31046924,101310.0,101300.0,0.197423]
[1737991420704,0.11306124,101310.0,101300.0,0.68587675]
[1737991421116,0.11306124,101310.0,101300.0,0.558223]
[1737991421298,0.11306124,101310.0,101300.0,0.68587675]
[1737991423807,0.29352822,101330.0,101320.0,0.197384]
[1737991424009,0.29352822,101330.0,101320.0,0.68583775]
[1737991424201,0.40688318,101330.0,101320.0,0.68583775]
[1737991424602,0.40688318,101330.0,101320.0,0.558184]
[1737991424809,0.96505018,101330.0,101320.0,0.197384]
[1737991425496,0.60425018,101330.0,101320.0,0.197384]
[1737991425810,0.76768318,101330.0,101320.0,0.32503775]
[1737991426703,0.47415496,101330.0,101320.0,0.29542567]
[1737991426904,0.67151896,101330.0,101320.0,0.16777192]
[1737991428610,0.31071896,101330.0,101320.0,0.16777192]
[1737991428808,0.67151896,101330.0,101320.0,0.16777192]
[1737991430701,0.197384,101320.0,101310.0,0.0001485]
[1737991431028,0.66150144,101320.0,101310.0,0.0001485]
[1737991431208,0.85450144,101320.0,101310.0,0.0001485]
[1737991433313,0.85450144,101320.0,101310.0,0.1975515]
[1737991433704,0.85450144,101320.0,101310.0,0.0001485]
[1737991433905,0.751184,101320.0,101310.0,0.1975515]
[1737991436508,0.5538,101320.0,101310.0,0.1975515]
[1737991436711,0.558174,101330.0,101320.0,0.197384]
[1737991436905,0.558174,101330.0,101320.0,1.82503775]
[1737991437212,0.1122496,101330.0,101320.0,1.82503775]
[1737991437919,0.3096136,101330.0,101320.0,0.197384]
[1737991438416,0.6704136,101330.0,101320.0,1.697384]
[1737991438714,0.3096136,101330.0,101320.0,1.697384]
[1737991438919,0.6704136,101330.0,101320.0,1.697384]
[1737991439314,0.1122496,101330.0,101320.0,1.82503775]
[1737991439513,0.75123602,101340.0,101330.0,0.197364]
[1737991439912,0.86276871,101340.0,101330.0,0.197364]
[1737991440816,0.85539269,101340.0,101330.0,0.197364]
[1737991441221,0.11153269,101340.0,101330.0,0.68581775]
[1737991441412,0.45988095,101350.0,101340.0,0.197345]
[1737991441710,0.10591986,101350.0,101340.0,0.197345]
[1737991441915,0.10443891,101350.0,101340.0,0.68579875]
[1737991442107,0.74913658,101360.0,101350.0,0.197325]
[1737991442419,0.85754236,101360.0,101350.0,0.197325]
[1737991442821,0.85001378,101360.0,101350.0,0.197325]
[1737991444618,0.66651378,101360.0,101350.0,0.197325]
[1737991445219,0.66651378,101360.0,101350.0,0.20464871]
[1737991446029,0.46920578,101360.0,101350.0,0.33230246]
[1737991446220,0.30571178,101360.0,101350.0,0.197325]
[1737991446517,0.66652178,101360.0,101340.0,0.197333]
[1737991446718,1.20296368,101380.0,101360.0,0.197287]
[1737991446719,1.71171568,101380.0,101360.0,0.197287]
[1737991446917,1.71171568,101380.0,101370.0,0.32494075]
[1737991446918,1.71115567,101380.0,101370.0,0.32494075]
[1737991447113,1.81628064,101380.0,101370.0,0.32494075]
[1737991447309,1.81628064,101380.0,101370.0,0.197287]
[1737991448724,1.81628064,101380.0,101370.0,0.11706547]
[1737991449024,0.197287,101370.0,101360.0,0.1974465]
[1737991449323,0.558087,101370.0,101360.0,0.1974465]
[1737991449526,0.64774584,101370.0,101360.0,0.1974465]
[1737991449729,0.28694584,101370.0,101360.0,0.1974465]
[1737991450219,0.08965884,101370.0,101360.0,0.1974465]
[1737991450424,0.08965884,101370.0,101360.0,0.32510025]
[1737991450619,0.08965884,101370.0,101360.0,0.28243853]
[1737991451123,0.830574,101380.0,101370.0,0.197287]
[1737991451324,0.4562,101380.0,101370.0,0.28227903]
[1737991451520,0.10557002,101380.0,101370.0,0.28227903]
[1737991451826,0.36228037,101390.0,101380.0,0.197267]
[1737991452123,0.10705039,101390.0,101380.0,0.28225903]
[1737991452322,0.10557002,101390.0,101380.0,0.28225903]
[1737991452524,1.16411634,101400.0,101390.0,0.197248]
[1737991452826,0.53441396,101400.0,101390.0,0.28224003]
[1737991453025,0.40730347,101400.0,101390.0,0.72803206]
[1737991453231,0.55770362,101410.0,101400.0,0.197228]
[1737991453434,0.55770362,101410.0,101400.0,0.82091206]
[1737991453628,0.55770362,101410.0,101400.0,0.91031206]
[1737991453929,0.32288105,101420.0,101410.0,0.197209]
[1737991454121,0.32288105,101420.0,101410.0,0.64300103]
[1737991455330,0.3608,101440.0,101430.0,0.19717]
[1737991455530,0.55795,101440.0,101430.0,0.28216203]
[1737991455723,0.59691288,101440.0,101430.0,0.28216203]
[1737991455926,0.59691288,101440.0,101430.0,1.78216203]
[1737991456629,0.59691288,101440.0,101430.0,1.82448907]
[1737991458725,0.59691288,101440.0,101430.0,0.32448907]
[1737991458925,0.59691288,101440.0,101430.0,0.12731907]
[1737991459121,0.19717,101430.0,101420.0,0.0001485]
[1737991459323,0.73757,101430.0,101420.0,0.0001485]
[1737991459536,0.82797,101430.0,101420.0,0.0001485]
[1737991459836,0.197189,101420.0,101410.0,0.00779711]
[1737991460029,0.557989,101420.0,101410.0,0.00779711]
[1737991460230,0.56576655,101420.0,101410.0,0.00779711]
[1737991462531,0.56576655,101420.0,101410.0,0.00752549]
[1737991462743,0.56576655,101420.0,101410.0,0.197209]
[1737991463636,0.197209,101410.0,101400.0,1.82469257]
[1737991463838,0.558009,101410.0,101400.0,1.6973735]
[1737991464037,0.558009,101410.0,101400.0,1.5001485]
[1737991464038,0.60475096,101410.0,101400.0,1.5001485]
[1737991464434,0.60475096,101410.0,101400.0,1.6973765]
[1737991465844,0.60475096,101410.0,101400.0,1.5001485]
[1737991466139,0.60475096,101410.0,101400.0,1.6973765]
[1737991466645,0.60475096,101410.0,101400.0,1.82469557]
[1737991466940,0.558009,101410.0,101400.0,0.32469557]
[1737991467340,0.558009,101410.0,101400.0,1.82469557]
[1737991467539,0.61252851,101410.0,101400.0,0.1973765]
[1737991468037,0.05451951,101410.0,101400.0,1.82469557]
[1737991468235,0.0001485,101430.0,101400.0,2.44879264]
[1737991468440,0.0001485,101430.0,101420.0,1.04610807]
[1737991473549,0.0001485,101430.0,101420.0,2.54610807]
[1737991474049,0.0001485,101430.0,101420.0,2.55401735]
[1737991474246,0.00147962,101450.0,101440.0,0.19715]
[1737991474551,0.00147962,101450.0,101440.0,0.68526907]
[1737991475245,0.00147962,101450.0,101440.0,0.81258814]
[1737991475447,0.00147962,101450.0,101440.0,0.68526907]
[1737991476345,0.00147962,101450.0,101440.0,0.60510993]
[1737991476539,0.00147962,101450.0,101440.0,1.093229]
[1737991476847,0.382097,101470.0,101460.0,0.197112]
[1737991477051,0.382097,101470.0,101460.0,0.32443107]
[1737991477352,0.382097,101470.0,101460.0,0.61741003]
[1737991477849,0.382097,101470.0,101460.0,0.3608]
[1737991478352,0.382097,101470.0,101460.0,0.68523107]
[1737991478648,0.197097,101470.0,101460.0,0.64274541]
[1737991479847,0.197097,101470.0,101460.0,0.557912]
[1737991480046,0.197097,101470.0,101460.0,0.3608]
[1737991480350,0.197097,101470.0,101460.0,0.64274541]
[1737991480742,0.68852681,101480.0,101460.0,0.64274541]
[1737991481747,0.557892,101470.0,101460.0,0.197112]
[1737991482054,0.557892,101470.0,101460.0,0.28194541]
[1737991482444,0.557892,101470.0,101460.0,0.20178998]
[1737991482647,0.197092,101470.0,101460.0,0.20178998]
[1737991482850,0.32772781,101480.0,101460.0,0.20178998]
[1737991483060,0.68852781,101480.0,101460.0,0.20178998]
[1737991483449,0.68852781,101480.0,101470.0,0.08483341]
[1737991483950,0.32772781,101480.0,101470.0,0.28192541]
[1737991484152,0.32874547,101480.0,101470.0,0.28192541]
[1737991485755,0.32874547,101480.0,101470.0,0.28292541]
[1737991487750,0.33774547,101480.0,101470.0,0.28392541]
[1737991488861,0.33774547,101480.0,101470.0,0.28292541]
[1737991491853,0.33774547,101480.0,101470.0,0.29081353]
[1737991492968,0.04756247,101480.0,101470.0,0.65161353]
[1737991493256,0.04756247,101480.0,101470.0,0.83661353]
[1737991493457,0.04756247,101480.0,101470.0,2.33661353]
[1737991495159,0.10147895,101500.0,101490.0,0.197053]
[1737991495355,0.10147895,101500.0,101490.0,0.72751982]
[1737991495559,0.10147895,101500.0,101490.0,0.64268641]
[1737991495759,0.10147895,101500.0,101490.0,2.14268641]
[1737991495946,0.10147895,101500.0,101490.0,2.06256601]
[1737991496358,0.30751295,101500.0,101490.0,2.06356601]
[1737991496755,0.39501295,101500.0,101490.0,1.58583341]
[1737991496956,0.75581295,101500.0,101490.0,1.501]
[1737991497149,0.75581295,101500.0,101490.0,0.002]
[1737991497356,0.93984636,101500.0,101490.0,0.002]
[1737991497749,0.85501295,101500.0,101490.0,0.002]
[1737991498571,0.31351295,101500.0,101490.0,0.28388641]
[1737991498860,0.67431295,101500.0,101490.0,0.28388641]
[1737991499054,0.40311295,101500.0,101490.0,0.199053]
[1737991499361,0.85711295,101500.0,101490.0,0.199053]
[1737991499660,0.85711295,101500.0,101490.0,0.002]
[1737991500164,0.94194636,101500.0,101490.0,0.002]
[1737991500364,0.197073,101480.0,101470.0,0.197085]
[1737991500565,0.557873,101480.0,101470.0,0.197085]
[1737991500864,0.652573,101480.0,101470.0,0.197085]
[1737991501362,0.197092,101470.0,101460.0,1.79129975]
[1737991501662,0.557892,101470.0,101460.0,0.00950684]
[1737991501853,0.739892,101470.0,101460.0,0.00950684]
[1737991502049,0.739892,101470.0,101460.0,0.29145225]
[1737991502254,0.739892,101470.0,101460.0,0.09434025]
[1737991502858,0.287392,101470.0,101460.0,0.28209391]
[1737991503465,0.294392,101470.0,101460.0,0.28309391]
[1737991503767,0.204092,101470.0,101460.0,0.28309391]
[1737991503957,0.210092,101470.0,101460.0,0.28309391]
[1737991504857,0.209092,101470.0,101460.0,0.28309391]
[1737991505659,0.209092,101470.0,101460.0,0.1982605]
[1737991505660,0.569892,101470.0,101460.0,0.1982605]
[1737991505860,0.562892,101470.0,101460.0,0.1972605]
[1737991506069,0.569892,101470.0,101460.0,0.0011485]
[1737991507062,0.012,101470.0,101460.0,0.72872732]
[1737991507361,0.1972085,101490.0,101480.0,0.197073]
[1737991507559,0.1972085,101490.0,101480.0,0.64270641]
[1737991507759,0.1972085,101490.0,101480.0,0.61314103]
[1737991508262,0.1972085,101490.0,101480.0,0.25234103]
[1737991508462,0.1972085,101490.0,101480.0,1.75234103]
[1737991508662,0.2032085,101490.0,101480.0,1.75334103]
[1737991509163,0.0061485,101490.0,101480.0,1.75334103]
[1737991509360,0.0061485,101490.0,101480.0,2.11514103]
[1737991510958,0.0001485,101490.0,101480.0,2.19897444]
[1737991511258,0.0021485,101490.0,101480.0,2.19897444]
[1737991511458,0.1,101500.0,101490.0,0.197054]
[1737991511672,0.197017,101510.0,101500.0,0.197034]
[1737991511863,0.197017,101510.0,101500.0,0.64266741]
[1737991512762,0.557817,101510.0,101500.0,0.28286741]
[1737991512967,0.197017,101510.0,101500.0,0.28286741]
[1737991514070,0.557817,101510.0,101500.0,0.198034]
[1737991514269,0.64265041,101510.0,101500.0,0.001]
[1737991514458,0.44563341,101510.0,101490.0,3.252e-05]
[1737991514658,0.73816741,101500.0,101490.0,3.252e-05]
[1737991515167,1.03816741,101500.0,101490.0,3.252e-05]
[1737991515371,0.197073,101480.0,101470.0,0.02463]
[1737991515669,0.197092,101470.0,101460.0,0.37554141]
[1737991516074,0.557892,101470.0,101460.0,0.37554141]
[1737991516575,0.557892,101470.0,101460.0,0.197108]
[1737991517271,0.557892,101470.0,101460.0,0.198108]
[1737991518473,0.557892,101470.0,101460.0,0.001]
[1737991518670,0.58167699,101470.0,101450.0,0.0001485]
[1737991518861,0.86528899,101460.0,101450.0,0.0001485]
[1737991519171,0.738012,101460.0,101450.0,0.0001485]
[1737991519670,0.557912,101460.0,101450.0,0.0001485]
[1737991520261,0.558912,101460.0,101450.0,0.0011485]
[1737991521869,0.78907699,101460.0,101410.0,0.10235897]
[1737991522069,0.19719,101420.0,101410.0,0.29956397]
[1737991522376,0.55799,101420.0,101410.0,0.00935897]
[1737991522561,0.55799,101420.0,101410.0,0.00147897]
[1737991522765,0.55799,101420.0,101410.0,0.19868797]
[1737991523476,0.55999,101420.0,101410.0,0.32596496]
[1737991523870,0.55799,101420.0,101410.0,0.32596496]
[1737991524067,0.55799,101420.0,101410.0,0.32696496]
[1737991524068,0.55999,101420.0,101410.0,0.32696496]
[1737991524670,0.0001485,101430.0,101410.0,0.49055596]
[1737991524875,0.36227942,101450.0,101420.0,0.48807699]
[1737991524876,0.55941842,101450.0,101420.0,0.48807699]
[1737991525179,0.00147942,101450.0,101440.0,0.81250498]
[1737991525372,0.0295683,101460.0,101440.0,0.70365398]
[1737991525568,0.0295683,101460.0,101450.0,0.68520799]
[1737991525973,0.2266803,101460.0,101450.0,0.68520799]
[1737991526173,0.197131,101450.0,101440.0,0.77366849]
[1737991526469,0.197131,101450.0,101440.0,0.41286849]
[1737991526669,0.206131,101450.0,101440.0,0.41286849]
[1737991526874,0.009,101450.0,101440.0,0.41286849]
[1737991527177,0.009,101450.0,101440.0,0.77366849]
[1737991527878,0.009,101450.0,101440.0,2.27366849]
[1737991528470,0.2386903,101460.0,101450.0,0.198131]
[1737991528872,0.2386903,101460.0,101450.0,0.32540799]
[1737991529171,0.2296903,101460.0,101450.0,0.32440799]
[1737991529775,0.2356903,101460.0,101450.0,0.32540799]
[1737991530785,0.2376903,101460.0,101450.0,0.32540799]
[1737991531773,0.0405683,101460.0,101450.0,0.32540799]
[1737991532578,0.2376803,101460.0,101450.0,0.32540799]
[1737991534382,0.0405683,101460.0,101450.0,0.68620799]
[1737991534875,0.0405683,101460.0,101450.0,2.18620799]
[1737991535875,0.2376803,101460.0,101450.0,2.18620799]
[1737991536179,0.2376803,101460.0,101450.0,0.558931]
[1737991536381,0.5984803,101460.0,101450.0,0.001]
[1737991536582,0.6912803,101460.0,101450.0,0.001]
[1737991538680,0.81855729,101460.0,101450.0,0.001]
[1737991538871,0.19717,101430.0,101420.0,0.292185]
[1737991539077,0.197162,101440.0,101430.0,0.197161]
[1737991539579,0.3608,101440.0,101420.0,0.31417699]
[1737991539773,0.19717,101430.0,101420.0,0.384081]
[1737991539979,0.197187,101430.0,101420.0,0.197184]
[1737991540283,0.557987,101430.0,101420.0,0.0011485]
[1737991540583,0.77216399,101430.0,101420.0,0.0011485]
[1737991540981,0.77216399,101430.0,101420.0,5e-07]
[1737991542081,0.80174103,101430.0,101420.0,5e-07]
[1737991543085,0.197189,101420.0,101410.0,0.0001485]
[1737991543289,0.557989,101420.0,101410.0,0.0001485]
[1737991543983,0.557989,101420.0,101410.0,0.32463449]
[1737991544293,0.197189,101420.0,101410.0,0.32463449]
[1737991544488,0.206189,101420.0,101410.0,0.32563449]
[1737991544889,0.206189,101420.0,101410.0,1.82563449]
[1737991545375,0.009,101420.0,101410.0,2.36433449]
[1737991545573,0.009,101420.0,101410.0,2.45743449]
[1737991545774,0.009,101420.0,101410.0,2.09663449]
[1737991545979,0.009,101420.0,101410.0,2.45743449]
[1737991546581,0.03857996,101420.0,101410.0,2.45743449]
[1737991546789,0.04057996,101420.0,101410.0,2.45743449]
[1737991548385,1e-08,101420.0,101410.0,2.46608144]
[1737991549790,1e-08,101420.0,101410.0,0.96608144]
[1737991550488,1e-08,101420.0,101410.0,2.46608144]
[1737991550985,0.02957997,101420.0,101410.0,2.46608144]
[1737991551796,0.02957997,101420.0,101410.0,0.96608144]
[1737991552186,0.22676997,101420.0,101410.0,2.46608144]
[1737991552887,0.22676997,101420.0,101410.0,0.56780445]
[1737991553081,0.22676997,101420.0,101410.0,0.69508144]
[1737991553284,0.02957997,101420.0,101410.0,0.69508144]
[1737991554883,0.02957704,101430.0,101420.0,0.19719]
[1737991555083,0.01624894,101430.0,101420.0,0.65568703]
[1737991556390,0.01624894,101430.0,101420.0,0.65668703]
[1737991556590,0.32109706,101440.0,101430.0,0.45172398]
[1737991556790,0.32109706,101440.0,101430.0,1.57440398]
[1737991556791,0.24914142,101440.0,101430.0,1.57440398]
[1737991557292,0.17670236,101450.0,101430.0,1.37723398]
[1737991557486,0.17670236,101450.0,101440.0,0.81250498]
[1737991557687,0.17685086,101450.0,101440.0,0.81250498]
[1737991558694,0.17685086,101450.0,101440.0,0.68522799]
[1737991559494,0.0001485,101450.0,101440.0,0.68522799]
[1737991559999,0.0021485,101450.0,101440.0,0.68522799]
[1737991560198,0.1992795,101450.0,101440.0,0.68522799]
[1737991560494,0.1992795,101450.0,101430.0,0.4864285]
[1737991560495,0.197151,101440.0,101430.0,0.4864285]
[1737991560801,0.739251,101440.0,101430.0,0.0326685]
[1737991560997,0.5610885,101450.0,101440.0,0.197151]
[1737991561194,0.0031485,101450.0,101440.0,0.68522799]
[1737991561395,0.2002795,101450.0,101440.0,0.68522799]
[1737991561789,0.0021485,101450.0,101440.0,0.68522799]
[1737991562001,0.0021485,101450.0,101440.0,0.81250498]
[1737991562301,0.0021485,101450.0,101440.0,0.68522799]
[1737991562498,0.0021485,101450.0,101440.0,0.81250498]
[1737991562696,0.0021485,101450.0,101440.0,0.68522799]
[1737991563196,0.0001485,101450.0,101440.0,0.68522799]
[1737991563801,0.0021485,101450.0,101440.0,0.68522799]
[1737991564103,0.0031485,101450.0,101440.0,0.81250498]
[1737991564293,0.0031485,101450.0,101440.0,0.68522799]
[1737991564496,0.0031485,101450.0,101440.0,0.81250498]
[1737991565200,0.0031485,101450.0,101440.0,0.82101767]
[1737991565601,0.0031485,101450.0,101440.0,0.69374068]
[1737991566393,0.2002795,101450.0,101440.0,0.56646369]
[1737991566790,0.2002795,101450.0,101440.0,0.69374068]
[1737991567693,0.2002795,101450.0,101440.0,0.33294068]
[1737991567894,0.197151,101440.0,101430.0,2.0586695]
[1737991568103,0.834751,101440.0,101430.0,0.0001485]
[1737991568491,0.834751,101440.0,101430.0,1.5001485]
[1737991568905,0.834751,101440.0,101430.0,0.0001485]
[1737991569497,0.473951,101440.0,101430.0,1.6973185]
[1737991570098,0.475951,101440.0,101430.0,1.6973185]
[1737991570300,0.002,101440.0,101430.0,2.18539549]
[1737991570492,0.002,101440.0,101430.0,2.31267248]
[1737991570695,0.002,101440.0,101430.0,2.45159549]
[1737991571105,0.0001485,101450.0,101440.0,0.197151]
[1737991571300,0.0001485,101450.0,101440.0,0.68522799]
[1737991571898,0.0001485,101450.0,101440.0,0.81250498]
[1737991573705,0.0021485,101450.0,101440.0,0.81250498]
[1737991574092,0.0295683,101460.0,101440.0,0.61535398]
[1737991574304,0.0295683,101460.0,101450.0,0.68520799]
[1737991574501,0.82367688,101500.0,101490.0,0.197054]
[1737991574699,0.81457364,101500.0,101490.0,0.32433099]
[1737991574903,0.81457364,101500.0,101490.0,1.82433099]
[1737991575500,0.61753564,101500.0,101490.0,1.82433099]
[1737991576205,0.61953564,101500.0,101490.0,1.82533099]
[1737991576400,0.61953564,101500.0,101490.0,2.18713099]
[1737991578709,0.72556238,101500.0,101490.0,2.18713099]
[1737991579611,0.72356238,101500.0,101490.0,2.18613099]
[1737991579818,0.72556238,101500.0,101490.0,2.18613099]
[1737991580306,0.72556238,101500.0,101490.0,0.68613099]
[1737991581212,0.72556238,101500.0,101490.0,2.18613099]
[1737991581419,0.72556238,101500.0,101490.0,2.36713099]
[1737991582103,0.43144254,101500.0,101490.0,2.36713099]
[1737991582311,0.002,101500.0,101490.0,2.36613099]
[1737991582915,0.0001485,101510.0,101490.0,2.25877699]
[1737991583115,0.001,101500.0,101490.0,2.377816]
[1737991583310,0.0001485,101510.0,101490.0,2.541562]
[1737991583507,0.38609817,101530.0,101520.0,0.196995]
[1737991583910,0.58307417,101530.0,101520.0,0.196995]
[1737991584208,0.58307417,101530.0,101520.0,0.32427199]
[1737991584405,0.38609817,101530.0,101520.0,0.68507199]
[1737991585011,0.09197833,101530.0,101520.0,0.68507199]
[1737991585406,0.1742,101540.0,101530.0,0.196976]
[1737991585712,0.086,101550.0,101530.0,0.48807699]
[1737991585912,0.086,101550.0,101540.0,0.68503399]
[1737991586109,0.6361655,101560.0,101540.0,0.48807699]
[1737991586314,0.6361655,101560.0,101550.0,0.32421399]
[1737991586515,0.3532435,101560.0,101550.0,0.68501399]
[1737991586711,0.2641435,101560.0,101550.0,0.68501399]
[1737991587015,0.2641435,101560.0,101550.0,2.18501399]
[1737991587218,0.2641435,101560.0,101550.0,2.31229098]
[1737991587416,0.43092015,101580.0,101550.0,2.31229098]
[1737991587417,0.34863156,101580.0,101560.0,0.3608]
[1737991587714,0.240556,101580.0,101570.0,1.17089499]
[1737991587910,0.2929229,101590.0,101580.0,0.196879]
[1737991588215,0.2929229,101590.0,101580.0,2.18495599]
[1737991588412,0.2929229,101590.0,101580.0,2.27545599]
[1737991589220,0.08689024,101590.0,101580.0,2.40373298]
[1737991589418,0.17925753,101610.0,101600.0,0.19684]
[1737991589723,0.17925753,101610.0,101600.0,1.04571699]
[1737991590016,0.17925753,101610.0,101600.0,2.54571699]
[1737991591014,0.18025753,101610.0,101600.0,1.04571699]
[1737991591413,0.08957395,101610.0,101600.0,1.04571699]
[1737991591617,0.08957395,101610.0,101600.0,2.54571699]
[1737991592115,0.08957395,101610.0,101600.0,2.68203615]
[1737991593116,0.08957395,101610.0,101600.0,2.60201313]
[1737991593318,0.08857395,101610.0,101600.0,2.60201313]
[1737991593519,0.08957395,101610.0,101600.0,0.97473614]
[1737991593910,0.64719495,101610.0,101600.0,0.13631916]
[1737991594116,0.19684,101600.0,101590.0,0.00014775]
[1737991594418,0.196879,101580.0,101570.0,0.00147644]
[1737991594721,0.557679,101580.0,101570.0,0.00147644]
[1737991594915,0.557679,101580.0,101570.0,0.12875343]
[1737991595320,0.557679,101580.0,101570.0,0.00147644]
[1737991595531,0.196879,101580.0,101570.0,0.12875343]
[1737991595824,0.557679,101580.0,101570.0,0.00147644]
[1737991596319,0.557679,101580.0,101570.0,0.00247644]
[1737991598020,0.68495599,101580.0,101570.0,0.001]
[1737991598215,0.557679,101580.0,101570.0,0.001]
[1737991598423,0.559679,101580.0,101570.0,0.001]
[1737991598625,0.196898,101570.0,101560.0,0.00014775]
[1737991598816,0.557698,101570.0,101560.0,0.00014775]
[1737991599212,0.196898,101570.0,101560.0,0.12742474]
[1737991599418,0.559687,101580.0,101570.0,0.196898]
[1737991599618,0.002,101580.0,101570.0,0.32417499]
[1737991600024,0.559679,101580.0,101570.0,1.696898]
[1737991600224,0.196898,101570.0,101560.0,0.55786175]
[1737991600520,0.197898,101570.0,101560.0,0.55786175]
[1737991600721,0.197898,101570.0,101560.0,2.05786175]
[1737991601224,0.290798,101570.0,101560.0,2.05786175]
[1737991601419,0.0939,101570.0,101560.0,2.18513874]
[1737991602126,0.001,101570.0,101560.0,2.18513874]
[1737991602815,0.006,101570.0,101560.0,2.18513874]
[1737991603012,0.006,101570.0,101560.0,2.31241573]
[1737991603311,0.006,101570.0,101560.0,2.40601573]
[1737991603515,0.006,101570.0,101560.0,2.19868171]
[1737991604121,0.006,101570.0,101560.0,2.20754587]
[1737991604525,0.001,101570.0,101560.0,2.20754587]
[1737991604722,0.005,101570.0,101560.0,2.20754587]
[1737991604927,0.00317029,101570.0,101560.0,2.11394587]
[1737991605123,0.28991324,101590.0,101570.0,0.196884]
[1737991605324,0.001,101570.0,101560.0,1.98667288]
[1737991605918,0.001,101570.0,101560.0,2.11394987]
[1737991606321,0.19688,101580.0,101570.0,0.197898]
[1737991606930,0.65671224,101590.0,101580.0,0.196879]
[1737991607319,0.65671224,101590.0,101570.0,0.68596699]
[1737991607519,0.29591224,101590.0,101570.0,0.68611474]
[1737991607828,0.29591224,101590.0,101580.0,0.196879]
[1737991607829,0.28991224,101590.0,101580.0,0.196879]
[1737991608330,0.29291224,101590.0,101580.0,0.197879]
[1737991608834,0.65571224,101590.0,101580.0,0.001]
[1737991609021,0.29491224,101590.0,101580.0,0.001]
[1737991609223,0.65571224,101590.0,101580.0,0.001]
[1737991609620,0.65571224,101590.0,101580.0,0.197879]
[1737991609621,0.29491224,101590.0,101580.0,0.197879]
[1737991609929,0.65571224,101590.0,101580.0,0.11781958]
[1737991610424,0.196879,101580.0,101570.0,0.19703775]
[1737991610635,0.557679,101580.0,101570.0,0.00014775]
[1737991610824,0.78807699,101580.0,101550.0,0.48568]
[1737991611022,0.196918,101560.0,101550.0,0.80988799]
[1737991611333,0.196918,101560.0,101550.0,2.30988799]
[1737991611527,0.196918,101560.0,101550.0,2.182611]
[1737991611830,0.557718,101560.0,101550.0,0.48568]
[1737991612029,0.196937,101550.0,101540.0,0.17547418]
[1737991612228,0.557737,101550.0,101540.0,1.67547418]
[1737991612625,0.557737,101550.0,101540.0,0.17547418]
[1737991613423,0.557737,101550.0,101540.0,0.00014775]
[1737991614033,0.649137,101550.0,101540.0,0.00014775]
[1737991614220,0.649137,101550.0,101540.0,0.00214775]
[1737991614626,0.649137,101550.0,101540.0,0.00014775]
[1737991614827,0.655137,101550.0,101540.0,0.00114775]
[1737991615830,0.657137,101550.0,101540.0,0.00114775]
[1737991616027,0.66610382,101550.0,101540.0,0.00114775]
[1737991616427,0.196976,101530.0,101520.0,1.88146694]
[1737991616628,0.557776,101530.0,101520.0,1.70614051]
[1737991616835,0.557776,101530.0,101520.0,1.62604086]
[1737991617134,0.7216,101530.0,101510.0,0.70177699]
[1737991617320,0.557795,101520.0,101510.0,0.4856]
[1737991617632,0.197015,101510.0,101500.0,0.29717475]
[1737991617831,0.557815,101510.0,101500.0,0.42445174]
[1737991618034,0.197015,101510.0,101500.0,0.43362364]
[1737991618235,0.648504,101520.0,101510.0,0.197015]
[1737991618429,0.653504,101520.0,101510.0,0.197015]
[1737991619126,0.648504,101520.0,101510.0,0.197015]
[1737991620026,0.649504,101520.0,101510.0,0.197015]
[1737991620631,0.197015,101510.0,101500.0,0.29717875]
[1737991620837,0.557815,101510.0,101500.0,0.10014775]
[1737991621135,0.197015,101510.0,101500.0,0.29718175]
[1737991621437,0.197015,101510.0,101500.0,0.42445874]
[1737991621633,0.557815,101510.0,101500.0,0.42445874]
[1737991621935,0.198015,101510.0,101500.0,0.42445874]
[1737991622840,0.001,101510.0,101500.0,0.42445874]
[1737991623138,0.001,101510.0,101500.0,0.43349527]
[1737991623323,0.198015,101510.0,101500.0,1.93349527]
[1737991623837,0.558815,101510.0,101500.0,0.10014775]
[1737991624136,0.68609199,101510.0,101500.0,0.10014775]
[1737991624334,0.197043,101500.0,101490.0,1.697053]
[1737991624927,0.197043,101500.0,101490.0,0.197053]
[1737991625331,0.557843,101500.0,101490.0,0.197053]
[1737991625533,0.197043,101500.0,101490.0,0.197053]
[1737991626537,0.199043,101500.0,101490.0,0.197053]
[1737991626842,0.002,101500.0,101490.0,0.68512999]
[1737991627235,0.03155665,101500.0,101490.0,0.68512999]
[1737991627542,0.23559065,101500.0,101490.0,0.32532999]
[1737991627841,0.03155665,101500.0,101490.0,0.32432999]
[1737991628135,0.03955665,101500.0,101490.0,0.68612999]
[1737991628637,0.03955665,101500.0,101490.0,0.32532999]
[1737991628841,0.23659065,101500.0,101490.0,0.32532999]
[1737991629039,0.23659065,101500.0,101490.0,0.198053]
[1737991629233,0.23259065,101500.0,101490.0,0.197053]